Workbook

Sheet Summary
B2: PREFABRICATED HOUSE UNITS
B4: CLIENT: | C4: DEPARTMENT OF CORRECTIONAL SERVICES
B5: IMPLEMENTING AGENT : INDEPENDENT DEVELOPMENT TRUST (IDT)
B6: PROJECT NAME: OBIQUA AND HAWEQUA CORRECTIONAL FACILITY (WESTERN CAPE)
B7: TENDER BILL OF QUANTITY
B9: SUMMARY OF OBIQUA AND HAWEQUA
D11: ESTIMATE
B12: ITEM NO | C12: FINAL SUMMARY | D12: OBIQUA CORRECTION FACILITY | E12: HAWEQUA CORRECTION FACILTIY | F12: TOTAL COST
B14: 1 | C14: Preliminaries and General (Excluding Professional Services) (P&G's - item 1 to 8)
B16: 2 | C16: Design and Supervision (Professional Services) (P&G's - item 9 to 12)
B18: 3 | C18: Demolition and Alterations
B20: 4 | C20: 5 Units per facility Construction Cost
B22: 5 | C22: SUBTOTAL - CONSTRUCTION COST
B24: 6 | C24: Value Added Tax (VAT) @ 15%
B26: 7 | C26: TOTAL COST
C28: Name of Bidder:_________________________________________________
C30: Signature:________________________
C32: Date: ___________________________

Sheet Obiqua
B2: PREFABRICATED HOUSE 5 UNITS
A4: CLIENT: | B4: DEPARTMENT OF CORRECTIONAL SERVICES
A5: IMPLEMENTING AGENT : INDEPENDENT DEVELOPMENT TRUST (IDT)
A6: PROJECT NAME: OBIQUA CORRECTIONAL FACILITY
A7: TENDER BILL OF QUANTITIES
A9: ITEM NO | B9: DESCRIPTION | C9: UNIT | D9: QUANTITY | E9: RATES | F9: AMOUNT
B11: SECTION 1
B13: BILL NO 1
B15: PRELIMINARIES AND GENERAL
B17: PREAMBLES
B19: The Model Preambles for Trades (2017 edition) as published by the Association of South African Quantity Surveyors shall be deemed to be incorporated in these bills of quantities and no claims arising from brevity of description of items fully described in the said Model Preambles will be entertained
B21: SUPPLEMENTARY PREAMBLES
B23: Any other items tenderers may wish to add of a preliminary and general nature not specifically mentioned above in order to comply with the specification and contract conditions.
B25: CONDITIONS OF CONTRACT AND PRELIMINARIES
B27: Provisional and General items in order to comply with the Conditions of Contract associated with the works contained in this document.
B29: Contractual requirements.
A31: 1 | B31: Site Establishment | C31: Sum | D31: 1
A33: 2 | B33: Health and Safety File | C33: Sum | D33: 1
A35: 3 | B35: Insurance | C35: Sum | D35: 1
A37: 4 | B37: Guarantee | C37: Sum | D37: 1
A39: 5 | B39: Delivery and Transport Cost | C39: Sum | D39: 1
A41: 6 | B41: Prefab Installation | C41: Sum | D41: 1
A43: 7 | B43: NHBRC Registration | C43: Sum | D43: 1
A45: 8 | B45: De-Establishment | C45: Sum | D45: 1
B47: Design and Supervision
A49: 9 | B49: Architecture | C49: Sum | D49: 1
A51: 10 | B51: Structural Engineer | C51: Sum | D51: 1
A53: 11 | B53: Health and Safety Agent | C53: Sum | D53: 1
A55: 12 | B55: Soil testing by an engineer | C55: Sum | D55: 1
B57: Preliminaries and General
B59: SECTION 2
B61: BILL NO. 1
B63: DEMOLITION AND ALTERATIONS
B65: PREAMBLES
B67: The Model Preambles for Trades (2017 edition) as published by the Association of South African Quantity Surveyors shall be deemed to be incorporated in these bills of quantities and no claims arising from brevity of description of items fully described in the said Model Preambles will be entertained
B69: View site
B71: Before submitting his tender the tenderer shall visit the site and satisfy himself as to the nature and extent of the work to be done and the value of the materials salvageable from the alterations. No claim for any variations of the contract sum in respect of the nature and extent of the work or of inferior or damaged materials will be entertained
B73: Explosives
B75: No explosives whatsoever may be used for alteration purposes unless otherwise stated
B77: General
B79: The contractor shall carry out the whole of the works with as little mess and noise as possible and with a minimum of disturbance to occupants in the building and to adjoining premises and their tenants. He shall provide proper protection and provide, erect and remove when directed, any temporary tarpaulins that may be necessary during the progress of the works, all to the satisfaction of the principal agent
B81: REMOVAL OF EXISTING WORK
A83: 1 | B83: Demolish existing 7500 x 4800mm prefabricated single quarters including electrical services and cart away at the nearest dump site located by the contractor (3 Blocks). The existing prefabricated housing contains Asbestos. | C83: No | D83: 3
A85: 2 | B85: Remove existing paving blocks and cart away | C85: m2 | D85: =150*0.25 -> 37.5
B87: Demolition and Alterations
B89: SECTION 2
B91: BILL NO. 2
B93: EARTHWORKS AND FOUNDATION
B95: PREAMBLES
B97: For preambles see "Model Preambles for Trades"
B99: The Model Preambles for Trades (2017 edition) as published by the Association of South African Quantity Surveyors shall be deemed to be incorporated in these bills of quantities and no claims arising from brevity of description of items fully described in the said Model Preambles will be entertained
B101: SUPPLEMENTARY PREAMBLES
B103: Nature of ground
B105: The nature of the ground is assumed to be loose sandy material, therefore "earth", but possibly interspersed with "hard rock" or "soft rock".
B107: The nature of the ground is assumed to be gravel, therefore "earth", but possibly interspersed with "soft rock".
B109: The nature of the ground is assumed to be silty clay with loose river boulders varying in size up to approximately 450mm diameter, therefore "earth", but possibly interspersed with "hard rock".
B111: Trial holes indicate that the nature of the ground is silty clay to a depth of approximately 500mm with fine to medium loose sandy material below, therefore "earth". The trial holes also indicate that the water table is at a maximum depth of approximately 1000mm.
B113: A soils investigation has been carried out on site by the engineer and the report is available at the offices of the civil engineers. Descriptions of excavations shall be deemed to include all ground conditions classifiable as "earth" described in the above report and where conditions of a more difficult character are indicated these are separately measured
B115: Carting away of excavated material
B117: Descriptions of carting away of excavated material shall be deemed to include loading excavated material onto trucks directly from the excavations or, alternatively, from stock piles situated on the building site.
B119: Filling
B121: Notwithstanding the reference to prescribed multiple handling in clause 1 page 6 of the Standard System of Measuring Building Work, prices for filling and backfilling shall include for all selection and any multiple handling of material.
B123: SITE CLEARANCE
B125: Site clearance
A127: 1 | B127: Digging up and removing rubbish, debris, vegetation, hedges, shrubs and trees not exceeding 200mm girth, bush, etc. | C127: m² | D127: 160
B129: EXCAVATION, FILLING, ETC
B131: TRENCH AND OTHER EXCAVATION
B133: Excavation in earth not exceeding 2m deep below natural or reduced ground level for:
A135: 2 | B135: Reduced levels under floors (300mm deep) | C135: m³ | D135: =+(0.3*(25*5)) -> 37.5
B137: Extra over all excavations for carting away
A139: 3 | B139: Surplus material from excavations and/or stock piles on site to a dumping site to be located by the contractor | C139: m³ | D139: =+D135 -> 38
B141: EXCAVATION OF A MORE DIFFICULT CHARACTER
B143: Extra over trench and hole excavations in earth for excavation in:
A145: 4 | B145: Soft rock | C145: m³ | D145: =+D135*0.1 -> 4
A147: 5 | B147: Hard rock | C147: m³ | D147: =+D145/2 -> 2
B149: RISK OF COLLAPSE OF EXCAVATIONS
B151: Allow for the risk of collapse to sides of trench and hole excavations from ground level to:
A153: 6 | B153: Sides of trench and hole excavations not exceeding 1,5m deep | C153: m² | D153: =+(20*0.3)*5 -> 30
B155: KEEPING EXCAVATIONS FREE OF WATER
A157: 7 | B157: Allow for keeping the excavations entirely free of water or mud during the execution of the contract | C157: Item | D157: 1
B159: EARTH FILLING, ETC
B161: Earth filling G5 compacted to 93% MOD ASHTO Density supplied by the contractor from excavations
A163: 8 | B163: Filling under Surface beds and trenches | C163: m³ | D163: =+(0.15*125) -> 19
B165: COMPACTION OF SURFACES
A167: 9 | B167: Compaction of ground surface under floors, etc. including scarifying for a depth of 150mm, breaking down oversize material, adding suitable material where necessary and compacting to 93% Mod AASHTO density. | C167: m² | D167: =+(25*5) -> 125
B169: SOIL POISONING
B171: Soil insecticide
A173: 10 | B173: Under Surface bed, etc. including forming and poisoning shallow furrows against foundation walls, etc. filling in furrows and ramming | C173: m² | D173: =+D167 -> 125
B175: Earthworks and Foundation
B177: SECTION 2
B179: BILL NO. 3
B181: CONCRETE, FORMWORK AND REINFORCEMENT
B183: PREAMBLES
B185: The Model Preambles for Trades (2017 edition) as published by the Association of South African Quantity Surveyors shall be deemed to be incorporated in these bills of quantities and no claims arising from brevity of description of items fully described in the said Model Preambles will be entertained
B187: GENERAL
B189: General items, described in Bill No. 1, shall equally apply to this Bill.
B191: SUPPLEMENTARY PREAMBLES
B193: Supplementary preambles, described in Bill No. 1, shall equally apply to this Bill
B195: Cost of tests
B197: The cost of making, storing and testing of concrete test cubes as required under clause 7 "Tests" of SABS 1200 G shall include the cost of providing cube moulds necessary for the purpose, for testing costs and for submitting reports on the tests to the architect. The testing shall be undertaken by an independent firm or institution nominated by the contractor to the approval of the architect. (Test cubes are measured separately)
B199: Breeze concrete shall consist of twelve parts clean dry furnace ash, free from coal or other foreign matter, to one part cement (12:1), the ash graded up to particles which will pass a 16,5mm ring from a minimum which fails to pass a 4,75mm mesh. The finer materials from the screening are to be first mixed with the cement into a mortar and the ash added afterwards and thoroughly incorporated
B201: Formwork
B203: Smooth Formwork All concrete exposed in the completed buildings is classified as "smooth off shutter finish" the finish shall be equivalent to that obtained from the use of new steel pans or high quality new steel pans or approved high quality shutter board and shall be achieved without any after treatment other than treatment of ferrule holes.
B205: The forms used shall be unblemished and the panel size regular. Forms may be reused provided the finish obtained is consistent. Construction joints may only occur at locations agreed with the architect and engineer and shall be executed such that their appearance is within the tolerance for the slab work.
B207: The contractor must take adequate measures to prevent damage such as rainwater streaking, rust streaking from projecting reinforcement, grout spillage and physical damage during subsequent construction.
B209: The patterns of ferrule holes shall be neat and regular and be subject to prior approval from the architect. The ferrule holes shall be thoroughly grouted and shall match the finish of the surrounding concrete.
B211: Chamfers are required on all edges unless otherwise noted. Particular care shall be taken to prevent grout loss at shutter joints and behind inserts in the shutters such as chamfers.
B213: The contractor shall manufacture a sample panel incorporating all the above features, such samples shall be subject to approval by the engineer and architect, all the above work shall be undertaken in accordance with SABS 1200G degree of accuracy II as set out in clause 6.23, c, d and e. All other concrete work on the project shall be classified as rough in accordance with Clause 5.2.1 of SABS 1200G but the degree of accuracy shall be class II.
B215: UNREINFORCED CONCRETE CAST AGAISNT EXCAVATED SURFACES
B217: Unreinforced concrete 15MPa/22mm:
A219: 1 | B219: 50mm concrete Blinding | C219: m³ | D219: =+(125*0.05) -> 6
B221: REINFORCED CONCRETE CAST AGAINST ALL CLASSES OF EXCAVATED SURFACES
B223: Reinforced concrete 25MPa/19mm:
A225: 2 | B225: Raft including Ground Beams (200mm thick) | C225: m² | D225: =25*5 -> 125
B227: TEST BLOCKS
A229: 3 | B229: Making and testing 150mm x 150mm x 150mm concrete strength test cubes. | C229: No | D229: 10
B231: SURFACE TREATMENT
B233: Power float top of concrete to a dead level, hard wearing, smooth and even surface in accordance with SABS 0100 Code of Practice to:
A235: 4 | B235: Surface beds, slabs etc. | C235: m² | D235: =+D225 -> 125
B237: FORMWORK
B239: ROUGH FORMWORK
B241: Rough formwork to sides of:
A243: 5 | B243: Edges, ends, risers, reveals etc. not exceeding 300mm high or wide | C243: m | D243: =20*5 -> 100
B245: REINFORCEMENT
B247: Fabric Reinforcement
A249: 6 | B249: Type 193 fabric reinforcement in concrete surface beds, slabs, etc. | C249: m² | D249: =+D235 -> 125
B251: Concrete, Formwork and Reinforcement
B253: SECTION 2
B255: BILL NO. 4
B257: WATERPROOFING
B259: PREAMBLES
B261: The Model Preambles for Trades (2017 edition) as published by the Association of South African Quantity Surveyors shall be deemed to be incorporated in these bills of quantities and no claims arising from brevity of description of items fully described in the said Model Preambles will be entertained
B263: SUPPLEMENTARY PREAMBLES
B265: Supplementary preambles, described in Bill No. 1, shall equally apply to this Bill
B267: Waterproofing
B269: Waterproofing of roofs, basements, etc. shall be laid under a ten year guarantee. Waterproofing to roofs shall be laid to even falls to outlets etc. with necessary ridges, hips and valleys. Descriptions of sheet or membrane waterproofing shall be deemed to include additional labour to turn-ups and turn-downs
B271: GENERAL
B273: General items, described in Bill No. 1, shall equally apply to this Bill.
B275: DAMP PROOFING OF WALLS AND FLOORS
B277: One layer of 25 micron embossed damp proof membrane laid flat or stepped as required:
A279: 1 | B279: Under surface beds | C279: m² | D279: =25*5 -> 125
B281: Waterproofing
B283: SECTION 2
B285: BILL NO. 5
B287: ROOF COVERINGS AND STRUCTURE,ETC
B289: PREAMBLES
B291: The Model Preambles for Trades (2017 edition) as published by the Association of South African Quantity Surveyors shall be deemed to be incorporated in these bills of quantities and no claims arising from brevity of description of items fully described in the said Model Preambles will be entertained
B293: SUPPLEMENTARY PREAMBLES
B295: Descriptions of all roof coverings are deemed to include for all straight cutting
B297: CORREGATED IBR SHEETING, ROOF TRUSS AND INSULATION
B299: 0,5mm Thick Chromadek IBR roof sheeting with pre-painted finish and accessories fixed to timber purlins or rails in strict accordance with manufacturer's specifications.
A301: 1 | B301: Roof covering with pitch not exceeding 25 degrees including light steel roof trusses and insulation | C301: m² | D301: =25*5 -> 125
B303: FIBRE CEMENT FLASHINGS, LININGS, COPINGS, ETC
B305: Everite medium density plain ungrooved Nutec fascia boards (Code: 40-904), size 225 x 10mm or similar approved, fixed to timber rafters twice screwed with 12 x 40mm countersunk brass screws with PVC H-profile fascia joiner between boards and at board ends
A307: 2 | B307: Barge boards not exceeding 300mm high | C307: m | D307: =20*5 -> 100
B309: DOWNPIPE AND GUTTER
A311: 3 | B311: 85mm PVC Gutter | C311: m | D311: =+(4*2.5)*5 -> 50
A313: 4 | B313: 80mm PVC Down pipe | C313: m | D313: =5*3.5 -> 17.5
B315: Roof Covering and Structures
B317: SECTION 2
B319: BILL NO. 6
B321: CARPENTRY AND JOINERY
B323: PREAMBLES
B325: The Model Preambles for Trades (2017 edition) as published by the Association of South African Quantity Surveyors shall be deemed to be incorporated in these bills of quantities and no claims arising from brevity of description of items fully described in the said Model Preambles will be entertained
B327: NOTE : All doors, windows, curtain walling, shopfronts etc. are to be priced in strict accordance with the architects drawings and schedules
B329: GENERAL
B331: General items, described in Bill No. 1, shall equally apply to this Bill.
B333: SUPPLEMENTARY PREAMBLES
B335: Supplementary preambles, described in Bill No. 1, shall equally apply to this Bill
B337: Joinery: Descriptions of frames shall be deemed to include frames, transomes, mullions, rails, etc
B339: Descriptions of hardwood joinery shall be deemed to include pelleting of bolt holes
B341: Fixing Items described as "nailed" shall be deemed to be fixed with hardened steel nails or shot pins to brickwork or concrete
B343: Treatment against insect pests
B345: Rates for all timber shall be deemed to include for treatment against insect pests
B347: All softwood for this job shall be treated to combat and prevent the spread of certain insect pests in accordance with Government Gazette Notice No R451 of 28 March 1969 and any amendments thereto. Proof of treatment shall be lodged with the Employer prior to the use of any timber in the works.
B349: Mitres, intersections, etc
B351: Descriptions of timber which is given linear, angles, rebates, grooves, chamfers, moulded edges, etc . are to be deemed to include for mitres, intersections, splay cut ends, stops, etc Descriptions of timber, etc shall be deemed to include for straight cutting and notching
B353: Fixing
B355: Items described as "nailed" shall be deemed to be fixed with hardened steel nails or shot pins to brickwork or concrete
B357: Items described as "plugged" shall be deemed to include for screwing to fibre, plastic or metal plugs at not exceeding 600mm centres or shall be deemed to be fixed with hardened steel nails or shot pins to brickwork or concrete. Descriptions are to be deemed to include for nails, screws, plugs, adhesives, holes, sin- kings, pelleting, etc
B359: Structural timber
B361: Descriptions of structural timber are to be deemed to include for joints in the length, holes, splay cut ends and mitres All softwood structural timber shall be of stress grade V5 or M5 in accordance with SWABS specification 563 unless otherwise stated
B363: Fascias, etc.
B365: Descriptions of fibre cement fascias and barge boards shall be deemed to include for mitres, end junctions, screws, bolts, wall anchors, holes, etc.
B367: DOORS ETC
B369: Solid flush door with hardwood concealed edge and 3mm thick Masonite panels to both sides suitable
A371: 1 | B371: 40 x 813x 2032mm Door (External Doors) | C371: No | D371: 5
B373: Sliding semi solid flush door with concealed hardwood edges faced both sides hung to steel frames including the sliding accessories
A375: 2 | B375: 40 x 813x 2032mm Sliding Door (Bathroom) | C375: No | D375: 5
B377: External Door Canopy
A379: 3 | B379: 1000mm Door Canopy | C379: No | D379: 5
B381: KITCHEN CABINET
A383: 4 | B383: 900mm two doors kitchen cabinet with stainless steel single sink bowl | C383: No | D383: 5
B385: Carpentry and Joinery
B387: SECTION NO. 2
B389: BILL NO. 7
B391: FLOOR COVERING, PLASTIC LINING, ETC.
B393: PREAMBLES
B395: The Model Preambles for Trades (2017 edition) as published by the Association of South African Quantity Surveyors shall be deemed to be incorporated in these bills of quantities and no claims arising from brevity of description of items fully described in the said Model Preambles will be entertained
B397: SUPPLEMENTARY PREAMBLES
... 130 more rows

Sheet Hawequa
B2: PREFABRICATED HOUSE 5 UNITS
A4: CLIENT: | B4: DEPARTMENT OF CORRECTIONAL SERVICES
A5: IMPLEMENTING AGENT : INDEPENDENT DEVELOPMENT TRUST (IDT)
A6: PROJECT NAME: HAWEQUA CORRECTIONAL FACILITY
A7: TENDER BILL OF QUANTITIES
A9: ITEM NO | B9: DESCRIPTION | C9: UNIT | D9: QUANTITY | E9: RATES | F9: AMOUNT
B11: SECTION 1
B13: BILL NO 1
B15: PRELIMINARIES AND GENERAL
B17: PREAMBLES
B19: The Model Preambles for Trades (2017 edition) as published by the Association of South African Quantity Surveyors shall be deemed to be incorporated in these bills of quantities and no claims arising from brevity of description of items fully described in the said Model Preambles will be entertained
B21: SUPPLEMENTARY PREAMBLES
B23: Any other items tenderers may wish to add of a preliminary and general nature not specifically mentioned above in order to comply with the specification and contract conditions.
B25: CONDITIONS OF CONTRACT AND PRELIMINARIES
B27: Provisional and General items in order to comply with the Conditions of Contract associated with the works contained in this document.
B29: Contractual requirements.
A31: 1 | B31: Site Establishment | C31: Sum | D31: 1
A33: 2 | B33: Health and Safety File | C33: Sum | D33: 1
A35: 3 | B35: Insurance | C35: Sum | D35: 1
A37: 4 | B37: Guarantee | C37: Sum | D37: 1
A39: 5 | B39: Delivery and Transport Cost | C39: Sum | D39: 1
A41: 6 | B41: Prefab Installation | C41: Sum | D41: 1
A43: 7 | B43: NHBRC Registration | C43: Sum | D43: 1
A45: 8 | B45: De-Establishment | C45: Sum | D45: 1
B47: Design and Supervision
A49: 9 | B49: Architecture | C49: Sum | D49: 1
A51: 10 | B51: Structural Engineer | C51: Sum | D51: 1
A53: 11 | B53: Health and Safety Agent | C53: Sum | D53: 1
A55: 12 | B55: Soil testing by an engineer | C55: Sum | D55: 1
B57: Preliminaries and General
B59: SECTION 2
B61: BILL NO. 1
B63: DEMOLITION AND ALTERATIONS
B65: PREAMBLES
B67: The Model Preambles for Trades (2017 edition) as published by the Association of South African Quantity Surveyors shall be deemed to be incorporated in these bills of quantities and no claims arising from brevity of description of items fully described in the said Model Preambles will be entertained
B69: View site
B71: Before submitting his tender the tenderer shall visit the site and satisfy himself as to the nature and extent of the work to be done and the value of the materials salvageable from the alterations. No claim for any variations of the contract sum in respect of the nature and extent of the work or of inferior or damaged materials will be entertained
B73: Explosives
B75: No explosives whatsoever may be used for alteration purposes unless otherwise stated
B77: General
B79: The contractor shall carry out the whole of the works with as little mess and noise as possible and with a minimum of disturbance to occupants in the building and to adjoining premises and their tenants. He shall provide proper protection and provide, erect and remove when directed, any temporary tarpaulins that may be necessary during the progress of the works, all to the satisfaction of the principal agent
B81: REMOVAL OF EXISTING WORK
A83: 1 | B83: Demolish existing 7500 x 4800mm prefabricated single quarters including electrical services and cart away at the nearest dump site located by the contractor (3 Blocks). The existing prefabricated housing contains Asbestos. | C83: No | D83: 3
A85: 2 | B85: Remove existing paving blocks and cart away | C85: m2 | D85: =150*0.25 -> 37.5
B87: Demolition and Alterations
B89: SECTION 2
B91: BILL NO. 2
B93: EARTHWORKS AND FOUNDATION
B95: PREAMBLES
B97: For preambles see "Model Preambles for Trades"
B99: The Model Preambles for Trades (2017 edition) as published by the Association of South African Quantity Surveyors shall be deemed to be incorporated in these bills of quantities and no claims arising from brevity of description of items fully described in the said Model Preambles will be entertained
B101: SUPPLEMENTARY PREAMBLES
B103: Nature of ground
B105: The nature of the ground is assumed to be loose sandy material, therefore "earth", but possibly interspersed with "hard rock" or "soft rock".
B107: The nature of the ground is assumed to be gravel, therefore "earth", but possibly interspersed with "soft rock".
B109: The nature of the ground is assumed to be silty clay with loose river boulders varying in size up to approximately 450mm diameter, therefore "earth", but possibly interspersed with "hard rock".
B111: Trial holes indicate that the nature of the ground is silty clay to a depth of approximately 500mm with fine to medium loose sandy material below, therefore "earth". The trial holes also indicate that the water table is at a maximum depth of approximately 1000mm.
B113: A soils investigation has been carried out on site by the engineer and the report is available at the offices of the civil engineers. Descriptions of excavations shall be deemed to include all ground conditions classifiable as "earth" described in the above report and where conditions of a more difficult character are indicated these are separately measured
B115: Carting away of excavated material
B117: Descriptions of carting away of excavated material shall be deemed to include loading excavated material onto trucks directly from the excavations or, alternatively, from stock piles situated on the building site.
B119: Filling
B121: Notwithstanding the reference to prescribed multiple handling in clause 1 page 6 of the Standard System of Measuring Building Work, prices for filling and backfilling shall include for all selection and any multiple handling of material.
B123: SITE CLEARANCE
B125: Site clearance
A127: 1 | B127: Digging up and removing rubbish, debris, vegetation, hedges, shrubs and trees not exceeding 200mm girth, bush, etc. | C127: m² | D127: 160
B129: EXCAVATION, FILLING, ETC
B131: TRENCH AND OTHER EXCAVATION
B133: Excavation in earth not exceeding 2m deep below natural or reduced ground level for:
A135: 2 | B135: Reduced levels under floors (300mm deep) | C135: m³ | D135: =+(0.3*(25*5)) -> 37.5
B137: Extra over all excavations for carting away
A139: 3 | B139: Surplus material from excavations and/or stock piles on site to a dumping site to be located by the contractor | C139: m³ | D139: =+D135 -> 38
B141: EXCAVATION OF A MORE DIFFICULT CHARACTER
B143: Extra over trench and hole excavations in earth for excavation in:
A145: 4 | B145: Soft rock | C145: m³ | D145: =+D135*0.1 -> 4
A147: 5 | B147: Hard rock | C147: m³ | D147: =+D145/2 -> 2
B149: RISK OF COLLAPSE OF EXCAVATIONS
B151: Allow for the risk of collapse to sides of trench and hole excavations from ground level to:
A153: 6 | B153: Sides of trench and hole excavations not exceeding 1,5m deep | C153: m² | D153: =+(20*0.3)*5 -> 30
B155: KEEPING EXCAVATIONS FREE OF WATER
A157: 7 | B157: Allow for keeping the excavations entirely free of water or mud during the execution of the contract | C157: Item | D157: 1
B159: EARTH FILLING, ETC
B161: Earth filling G5 compacted to 93% MOD ASHTO Density supplied by the contractor from excavations
A163: 8 | B163: Filling under Surface beds and trenches | C163: m³ | D163: =+(0.15*125) -> 19
B165: COMPACTION OF SURFACES
A167: 9 | B167: Compaction of ground surface under floors, etc. including scarifying for a depth of 150mm, breaking down oversize material, adding suitable material where necessary and compacting to 93% Mod AASHTO density. | C167: m² | D167: =+(25*5) -> 125
B169: SOIL POISONING
B171: Soil insecticide
A173: 10 | B173: Under Surface bed, etc. including forming and poisoning shallow furrows against foundation walls, etc. filling in furrows and ramming | C173: m² | D173: =+D167 -> 125
B175: Earthworks and Foundation
B177: SECTION 2
B179: BILL NO. 3
B181: CONCRETE, FORMWORK AND REINFORCEMENT
B183: PREAMBLES
B185: The Model Preambles for Trades (2017 edition) as published by the Association of South African Quantity Surveyors shall be deemed to be incorporated in these bills of quantities and no claims arising from brevity of description of items fully described in the said Model Preambles will be entertained
B187: GENERAL
B189: General items, described in Bill No. 1, shall equally apply to this Bill.
B191: SUPPLEMENTARY PREAMBLES
B193: Supplementary preambles, described in Bill No. 1, shall equally apply to this Bill
B195: Cost of tests
B197: The cost of making, storing and testing of concrete test cubes as required under clause 7 "Tests" of SABS 1200 G shall include the cost of providing cube moulds necessary for the purpose, for testing costs and for submitting reports on the tests to the architect. The testing shall be undertaken by an independent firm or institution nominated by the contractor to the approval of the architect. (Test cubes are measured separately)
B199: Breeze concrete shall consist of twelve parts clean dry furnace ash, free from coal or other foreign matter, to one part cement (12:1), the ash graded up to particles which will pass a 16,5mm ring from a minimum which fails to pass a 4,75mm mesh. The finer materials from the screening are to be first mixed with the cement into a mortar and the ash added afterwards and thoroughly incorporated
B201: Formwork
B203: Smooth Formwork All concrete exposed in the completed buildings is classified as "smooth off shutter finish" the finish shall be equivalent to that obtained from the use of new steel pans or high quality new steel pans or approved high quality shutter board and shall be achieved without any after treatment other than treatment of ferrule holes.
B205: The forms used shall be unblemished and the panel size regular. Forms may be reused provided the finish obtained is consistent. Construction joints may only occur at locations agreed with the architect and engineer and shall be executed such that their appearance is within the tolerance for the slab work.
B207: The contractor must take adequate measures to prevent damage such as rainwater streaking, rust streaking from projecting reinforcement, grout spillage and physical damage during subsequent construction.
B209: The patterns of ferrule holes shall be neat and regular and be subject to prior approval from the architect. The ferrule holes shall be thoroughly grouted and shall match the finish of the surrounding concrete.
B211: Chamfers are required on all edges unless otherwise noted. Particular care shall be taken to prevent grout loss at shutter joints and behind inserts in the shutters such as chamfers.
B213: The contractor shall manufacture a sample panel incorporating all the above features, such samples shall be subject to approval by the engineer and architect, all the above work shall be undertaken in accordance with SABS 1200G degree of accuracy II as set out in clause 6.23, c, d and e. All other concrete work on the project shall be classified as rough in accordance with Clause 5.2.1 of SABS 1200G but the degree of accuracy shall be class II.
B215: UNREINFORCED CONCRETE CAST AGAISNT EXCAVATED SURFACES
B217: Unreinforced concrete 15MPa/22mm:
A219: 1 | B219: 50mm concrete Blinding | C219: m³ | D219: =+(125*0.05) -> 6
B221: REINFORCED CONCRETE CAST AGAINST ALL CLASSES OF EXCAVATED SURFACES
B223: Reinforced concrete 25MPa/19mm:
A225: 2 | B225: Raft including Ground Beams (200mm thick) | C225: m² | D225: =25*5 -> 125
B227: TEST BLOCKS
A229: 3 | B229: Making and testing 150mm x 150mm x 150mm concrete strength test cubes. | C229: No | D229: 10
B231: SURFACE TREATMENT
B233: Power float top of concrete to a dead level, hard wearing, smooth and even surface in accordance with SABS 0100 Code of Practice to:
A235: 4 | B235: Surface beds, slabs etc. | C235: m² | D235: =+D225 -> 125
B237: FORMWORK
B239: ROUGH FORMWORK
B241: Rough formwork to sides of:
A243: 5 | B243: Edges, ends, risers, reveals etc. not exceeding 300mm high or wide | C243: m | D243: =20*5 -> 100
B245: REINFORCEMENT
B247: Fabric Reinforcement
A249: 6 | B249: Type 193 fabric reinforcement in concrete surface beds, slabs, etc. | C249: m² | D249: =+D235 -> 125
B251: Concrete, Formwork and Reinforcement
B253: SECTION 2
B255: BILL NO. 4
B257: WATERPROOFING
B259: PREAMBLES
B261: The Model Preambles for Trades (2017 edition) as published by the Association of South African Quantity Surveyors shall be deemed to be incorporated in these bills of quantities and no claims arising from brevity of description of items fully described in the said Model Preambles will be entertained
B263: SUPPLEMENTARY PREAMBLES
B265: Supplementary preambles, described in Bill No. 1, shall equally apply to this Bill
B267: Waterproofing
B269: Waterproofing of roofs, basements, etc. shall be laid under a ten year guarantee. Waterproofing to roofs shall be laid to even falls to outlets etc. with necessary ridges, hips and valleys. Descriptions of sheet or membrane waterproofing shall be deemed to include additional labour to turn-ups and turn-downs
B271: GENERAL
B273: General items, described in Bill No. 1, shall equally apply to this Bill.
B275: DAMP PROOFING OF WALLS AND FLOORS
B277: One layer of 25 micron embossed damp proof membrane laid flat or stepped as required:
A279: 1 | B279: Under surface beds | C279: m² | D279: =25*5 -> 125
B281: Waterproofing
B283: SECTION 2
B285: BILL NO. 5
B287: ROOF COVERINGS AND STRUCTURE,ETC
B289: PREAMBLES
B291: The Model Preambles for Trades (2017 edition) as published by the Association of South African Quantity Surveyors shall be deemed to be incorporated in these bills of quantities and no claims arising from brevity of description of items fully described in the said Model Preambles will be entertained
B293: SUPPLEMENTARY PREAMBLES
B295: Descriptions of all roof coverings are deemed to include for all straight cutting
B297: CORREGATED IBR SHEETING, ROOF TRUSS AND INSULATION
B299: 0,5mm Thick Chromadek IBR roof sheeting with pre-painted finish and accessories fixed to timber purlins or rails in strict accordance with manufacturer's specifications.
A301: 1 | B301: Roof covering with pitch not exceeding 25 degrees including light steel roof trusses and insulation | C301: m² | D301: =25*5 -> 125
B303: FIBRE CEMENT FLASHINGS, LININGS, COPINGS, ETC
B305: Everite medium density plain ungrooved Nutec fascia boards (Code: 40-904), size 225 x 10mm or similar approved, fixed to timber rafters twice screwed with 12 x 40mm countersunk brass screws with PVC H-profile fascia joiner between boards and at board ends
A307: 2 | B307: Barge boards not exceeding 300mm high | C307: m | D307: =20*5 -> 100
B309: DOWNPIPE AND GUTTER
A311: 3 | B311: 85mm PVC Gutter | C311: m | D311: =+(4*2.5)*5 -> 50
A313: 4 | B313: 80mm PVC Down pipe | C313: m | D313: =5*3.5 -> 17.5
B315: Roof Covering and Structures
B317: SECTION 2
B319: BILL NO. 6
B321: CARPENTRY AND JOINERY
B323: PREAMBLES
B325: The Model Preambles for Trades (2017 edition) as published by the Association of South African Quantity Surveyors shall be deemed to be incorporated in these bills of quantities and no claims arising from brevity of description of items fully described in the said Model Preambles will be entertained
B327: NOTE : All doors, windows, curtain walling, shopfronts etc. are to be priced in strict accordance with the architects drawings and schedules
B329: GENERAL
B331: General items, described in Bill No. 1, shall equally apply to this Bill.
B333: SUPPLEMENTARY PREAMBLES
B335: Supplementary preambles, described in Bill No. 1, shall equally apply to this Bill
B337: Joinery: Descriptions of frames shall be deemed to include frames, transomes, mullions, rails, etc
B339: Descriptions of hardwood joinery shall be deemed to include pelleting of bolt holes
B341: Fixing Items described as "nailed" shall be deemed to be fixed with hardened steel nails or shot pins to brickwork or concrete
B343: Treatment against insect pests
B345: Rates for all timber shall be deemed to include for treatment against insect pests
B347: All softwood for this job shall be treated to combat and prevent the spread of certain insect pests in accordance with Government Gazette Notice No R451 of 28 March 1969 and any amendments thereto. Proof of treatment shall be lodged with the Employer prior to the use of any timber in the works.
B349: Mitres, intersections, etc
B351: Descriptions of timber which is given linear, angles, rebates, grooves, chamfers, moulded edges, etc . are to be deemed to include for mitres, intersections, splay cut ends, stops, etc Descriptions of timber, etc shall be deemed to include for straight cutting and notching
B353: Fixing
B355: Items described as "nailed" shall be deemed to be fixed with hardened steel nails or shot pins to brickwork or concrete
B357: Items described as "plugged" shall be deemed to include for screwing to fibre, plastic or metal plugs at not exceeding 600mm centres or shall be deemed to be fixed with hardened steel nails or shot pins to brickwork or concrete. Descriptions are to be deemed to include for nails, screws, plugs, adhesives, holes, sin- kings, pelleting, etc
B359: Structural timber
B361: Descriptions of structural timber are to be deemed to include for joints in the length, holes, splay cut ends and mitres All softwood structural timber shall be of stress grade V5 or M5 in accordance with SWABS specification 563 unless otherwise stated
B363: Fascias, etc.
B365: Descriptions of fibre cement fascias and barge boards shall be deemed to include for mitres, end junctions, screws, bolts, wall anchors, holes, etc.
B367: DOORS ETC
B369: Solid flush door with hardwood concealed edge and 3mm thick Masonite panels to both sides suitable
A371: 1 | B371: 40 x 813x 2032mm Door (External Doors) | C371: No | D371: 5
B373: Sliding semi solid flush door with concealed hardwood edges faced both sides hung to steel frames including the sliding accessories
A375: 2 | B375: 40 x 813x 2032mm Sliding Door (Bathroom) | C375: No | D375: 5
B377: External Door Canopy
A379: 3 | B379: 1000mm Door Canopy | C379: No | D379: 5
B381: KITCHEN CABINET
A383: 4 | B383: 900mm two doors kitchen cabinet with stainless steel single sink bowl | C383: No | D383: 5
B385: Carpentry and Joinery
B387: SECTION NO. 2
B389: BILL NO. 7
B391: FLOOR COVERING, PLASTIC LINING, ETC.
B393: PREAMBLES
B395: The Model Preambles for Trades (2017 edition) as published by the Association of South African Quantity Surveyors shall be deemed to be incorporated in these bills of quantities and no claims arising from brevity of description of items fully described in the said Model Preambles will be entertained
B397: SUPPLEMENTARY PREAMBLES
... 130 more rows
